fUST/lending_fUST_20251219
["ID","MTS","AMOUNT","RATE_DAILY","PERIOD"]
[399069688,1766099443413,-151.0,0.0004599,120]
[399069689,1766099443422,-247.566468,0.0004599,120]
[399069690,1766099443431,-426.08222,0.0004599,120]
[399069691,1766099443440,-426.08222,0.0004599,120]
[399069692,1766099443449,-426.08222,0.0004599,120]
[399069693,1766099443459,-426.08222,0.0004599,120]
[399069694,1766099443468,-151.0,0.0004599,120]
[399069695,1766099443477,-2152.46353,0.0004599,15]
[399069696,1766099443487,-2152.46353,0.0004599,15]
[399069697,1766099443496,-2152.46353,0.0004599,15]
[399069698,1766099443505,-2152.46353,0.0004599,15]
[399069699,1766099443515,-151.0,0.0004599,120]
[399069700,1766099443524,-151.0,0.0004599,120]
[399069701,1766099443533,-151.0,0.0004599,120]
[399069702,1766099443542,-1224.797206,0.0004599,120]
[399069703,1766099443552,-1224.797206,0.0004599,120]
[399069704,1766099443561,-1224.797206,0.0004599,120]
[399069705,1766099443570,-224.084793,0.0004599,120]
[399069706,1766099443579,-1224.797206,0.0004599,120]
[399069707,1766099443588,-151.0,0.00046,28]
[399069708,1766099443599,-151.0,0.000461,27]
[399069709,1766099443608,-179.17,0.000461,14]
[399069710,1766099443618,-2153.0,0.00046169,2]
[399069711,1766099443627,-632.0,0.00046169,2]
[399069712,1766099443636,-151.0,0.000463,24]
[399069713,1766099443650,-872.10095441,0.00046443,2]
[399069714,1766099443659,-300.0,0.00046466,90]
[399069715,1766099443669,-565.91982823,0.00046527,2]
[399069716,1766099443678,-151.0,0.000466,26]
[399069717,1766099443688,-151.0,0.000466,28]
[399069718,1766099443698,-2601.63,0.000466,14]
[399069719,1766099443707,-2167.68992983,0.00046629,2]
[399069720,1766099443717,-166.53,0.00046693,14]
[399069721,1766099443726,-238.7510887,0.00046849,30]
[399069722,1766099443736,-166.46617221,0.00046941,120]
[399069723,1766099443745,-1657.64524046,0.00046964,5]
[399069724,1766099443756,-151.0,0.00047,29]
[399069725,1766099443765,-151.0,0.00047,26]
[399069726,1766099443774,-166.50796603,0.0004722,14]
[399069727,1766099443783,-151.0,0.000473,23]
[399069728,1766099443792,-151.0,0.000475,24]
[399069729,1766099443801,-151.0,0.000476,28]
[399069730,1766099443811,-151.0,0.000477,30]
[399069731,1766099443820,-166.46617221,0.00047894,120]
[399069732,1766099443829,-151.0,0.000479,23]
[399069733,1766099443841,-179.17,0.000479,14]
[399069734,1766099443851,-739.49082085,0.00047952,2]
[399069735,1766099443860,-151.0,0.00048,30]
[399069736,1766099443870,-151.0,0.000481,21]
[399069737,1766099443879,-153.0,0.00048219,30]
[399069738,1766099443888,-153.0,0.00048219,30]
[399069739,1766099443902,-153.0,0.00048219,30]
[399069740,1766099443912,-153.0,0.00048219,30]
[399069741,1766099443922,-166.53,0.00048346,14]
[399069742,1766099443931,-1842.107877,0.0004836,20]
[399069743,1766099443940,-1000.0,0.0004838,20]
[399069744,1766099443950,-151.0,0.000484,28]
[399069745,1766099443959,-2601.63,0.000484,14]
[399069746,1766099443968,-1000.0,0.000484,20]
[399069747,1766099443977,-151.0,0.0004842,120]
[399069748,1766099443987,-151.0,0.0004842,120]
[399069749,1766099443995,-1000.0,0.0004842,20]
[399069750,1766099444004,-1000.0,0.0004844,20]
[399069751,1766099444014,-1000.0,0.0004846,20]
[399069752,1766099444024,-1000.0,0.0004848,20]
[399069753,1766099444033,-1196.976341,0.0004848,20]
[399069754,1766099444042,-151.0,0.000485,25]
[399069755,1766099444050,-1000.0,0.000485,20]
[399069756,1766099444059,-1000.0,0.000485,20]
[399069757,1766099444069,-1579917.15066745,0.0004851,30]
[399069758,1766099444177,-6979.34107445,0.0004851,30]
[399069759,1766099444190,-2299.87787963,0.0004851,30]
[399069760,1766099444204,-475.9999938,0.0004851,30]
[399069761,1766099444218,-356.550436,0.0004851,30]
[399069762,1766099444230,-8503.47529607,0.0004851,30]
[399069763,1766099444972,-1136.593635,0.0004851,30]
[399069764,1766099445461,-3e-08,0.0004127,2]
[399069765,1766099445473,-999.3076169,0.0004127,2]
[399069766,1766099445483,-755.6523831,0.0004851,30]
[399069767,1766099445494,-1582.56342181,0.0004851,30]
[399069768,1766099445505,-93047.50260261,0.0004851,30]
[399069769,1766099445515,-334.12,0.000486,30]
[399069770,1766099445524,-814.61,0.000486,2]
[399069771,1766099445534,-166.46617221,0.00048847,120]
[399069772,1766099445543,-500.0,0.0004886,60]
[399069773,1766099445552,-151.0,0.000489,21]
[399069774,1766099445562,-151.0,0.000489,26]
[399069775,1766099445571,-667.96177537,0.00049138,120]
[399069776,1766099445913,-332.03822463,0.00049138,120]
[399069777,1766099445923,-236.49314047,0.00049138,120]
[399069785,1766099448404,-177.92920058,0.00040592,120]
[399069786,1766099448415,-177.92920058,0.00040592,120]
[399069787,1766099448426,-177.92920058,0.00040592,120]
[399069788,1766099448435,-999.30761691,0.00043152,2]
[399069789,1766099448444,-224.084793,0.0004599,120]
[399069790,1766099448454,-224.084793,0.0004599,120]
[399069792,1766099448463,-237.03,0.00046433,30]
[399069793,1766099448473,-312.71,0.00049205,120]
[399069794,1766099448483,-316.76905227,0.00049314,30]
[399069795,1766099448492,-200.0,0.00049314,30]
[399069796,1766099448502,-200.0,0.00049314,30]
[399069797,1766099448511,-223.46847972,0.00049314,30]
[399069798,1766099448520,-200.0,0.00049314,30]
[399069799,1766099448530,-589.1439579,0.00049315,120]
[399069800,1766099448541,-301.80816731,0.00049315,10]
[399069801,1766099448551,-232.3479746,0.00049315,2]
[399069802,1766099448561,-500.0,0.00049315,120]
[399069803,1766099448571,-500.0,0.00049315,120]
[399069804,1766099448580,-500.0,0.00049315,120]
[399069805,1766099448590,-500.0,0.00049315,120]
[399069806,1766099448600,-500.0,0.00049315,120]
[399069807,1766099448610,-500.0,0.00049315,120]
[399069808,1766099448619,-500.0,0.00049315,120]
[399069809,1766099448629,-173.62887435,0.00049315,120]
[399069810,1766099448639,-339.53982146,0.00049315,120]
[399069821,1766099523483,500.0,0.00013273,2]
[399069822,1766099523543,910.08012468,0.00013821,2]
[399069823,1766099523776,500.0,0.00013273,2]
[399069824,1766099523818,659.73133406,0.00014368,2]
[399069825,1766099523849,840.26866594,0.00014368,2]
[399069826,1766099523883,1000.0,0.00013821,2]
[399069827,1766099523941,159.87578528,0.00014916,2]
[399069828,1766099524088,500.0,0.00013273,2]
[399069829,1766099524140,1000.0,0.00013821,2]
[399069830,1766099524172,987.55705444,0.00014368,2]
[399069831,1766099528183,500.0,0.00013699,2]
[399069878,1766099583940,500.47271545,0.00013273,2]
[399069879,1766099584022,500.0,0.00013699,2]
[399069880,1766099584075,1000.0,0.00014247,2]
[399069881,1766099584128,1500.0,0.00014795,2]
[399069883,1766099597974,-768.84925882,0.00015342,2]
[399069884,1766099601135,-271.1823255,0.00015342,2]
[399069885,1766099603410,-152.28097621,0.00015342,2]
[399069886,1766099606725,-161.38,0.00015342,2]
[399069887,1766099608549,-219.29610698,0.00015342,2]
[399069888,1766099610353,-206.44085261,0.00015342,2]
[399069889,1766099611871,-220.57047988,0.00015342,2]
[399069890,1766099611902,-224.86849662,0.0001589,2]
[399069892,1766099622013,150.0,8.952e-05,2]
[399069893,1766099622421,150.0,9.379e-05,2]
[399069894,1766099622824,150.0,9.805e-05,2]
[399069895,1766099623260,150.0,0.00010231,2]
[399069896,1766099623666,155.05,0.00010658,2]
[399069897,1766099624067,186.07,0.00011084,2]
[399069898,1766099624479,217.08,0.0001151,2]
[399069899,1766099624919,248.09,0.00011937,2]
[399069900,1766099625302,279.1,0.00012363,2]
[399069901,1766099625696,310.11,0.00012789,2]
[399069904,1766099643930,1000.0,0.00015,2]
[399069905,1766099648952,500.80695146,0.00013699,2]
[399069906,1766099691529,150.0,8.788e-05,2]
[399069907,1766099691935,150.0,9.207e-05,2]
[399069908,1766099692347,158.18,9.625e-05,2]
[399069909,1766099692763,210.91,0.00010044,2]
[399069910,1766099693156,263.63,0.00010462,2]
[399069911,1766099693568,316.36,0.00010881,2]
[399069912,1766099693985,369.09,0.00011299,2]
[399069913,1766099694375,421.81,0.00011718,2]
[399069914,1766099694769,474.54,0.00012136,2]
[399069915,1766099695464,527.27,0.00012555,2]
[399069936,1766099824246,500.0,0.00013273,2]
[399069978,1766099844162,150.0,9.139e-05,2]
[399069980,1766099844557,150.0,9.574e-05,2]
[399069982,1766099844965,176.52,0.00010009,2]
[399069983,1766099845360,235.35,0.00010444,2]
[399069985,1766099845763,294.19,0.0001088,2]
[399069988,1766099846360,353.03,0.00011315,2]
[399069989,1766099846587,411.87,0.0001175,2]
[399069991,1766099847002,470.71,0.00012185,2]
[399069993,1766099847414,529.55,0.0001262,2]
[399069996,1766099847922,588.39,0.00013056,2]
[399070017,1766099868469,-203.92087696,0.00015419,2]
[399070027,1766099883593,1000.0,0.00015,2]
[399070029,1766099957839,-328.56898839,0.00015265,2]
[399070030,1766099962305,-191.26207394,0.00015265,2]
[399070034,1766100011223,191.26207394,0.00013699,2]
[399070086,1766100063742,500.0,0.00013699,2]
[399070087,1766100063776,288.5371219,0.00014247,2]
[399070088,1766100064155,5000.0,0.00015,2]
[399070089,1766100066719,500.0,0.00013273,2]
[399070090,1766100066753,539.44271644,0.00013821,2]
[399070106,1766100087545,3172.03016166,0.00015,2]
[399070107,1766100087577,1827.96983834,0.00015,2]
[399070115,1766100110883,5000.0,0.00015,2]
[399070116,1766100124920,1000.0,0.00015,2]
[399070118,1766100134806,2172.04016166,0.00015,2]
[399070119,1766100134838,2827.95983834,0.00015,2]
[399070135,1766100151646,3133.03575622,0.00015,2]
[399070146,1766100157965,150.0,0.00014072,2]
[399070147,1766100158369,208.78,0.00014742,2]
[399070216,1766100306836,222.61677492,0.00013699,2]
[399070217,1766100313331,150.0,0.00014072,2]
[399070218,1766100313824,199.65,0.00014742,2]
[399070219,1766100334109,-152.21013647,0.00015412,2]
[399070220,1766100362965,-546.39918157,0.00015258,2]
[399070221,1766100364279,1000.0,0.00015,2]
[399070222,1766100365716,-202.97677068,0.00015258,2]
[399070223,1766100366779,500.0,0.00013273,2]
[399070224,1766100366813,1000.0,0.00013821,2]
[399070225,1766100368573,-155.87,0.00015258,2]
[399070226,1766100371249,-198.5,0.00015258,2]
[399070227,1766100372256,546.39918157,0.00013699,2]
[399070228,1766100375580,550.63551965,0.00015,2]
[399070231,1766100434090,-1968.10376632,0.00015258,2]
[399070247,1766100453669,700.0,0.00015,2]
[399070248,1766100464802,150.0,8.786e-05,2]
[399070249,1766100465354,186.87,9.204e-05,2]
[399070250,1766100465634,280.31,9.622e-05,2]
[399070251,1766100466119,373.75,0.00010041,2]
[399070252,1766100466556,467.19,0.00010459,2]
[399070253,1766100467012,560.62,0.00010878,2]
[399070254,1766100467437,654.06,0.00011296,2]
[399070255,1766100467845,747.5,0.00011714,2]
[399070256,1766100468265,840.93,0.00012133,2]
[399070257,1766100469153,934.37,0.00012551,2]
[399070258,1766100483358,157.72529878,0.00013273,2]
[399070259,1766100483392,317.52592673,0.00013273,2]
[399070260,1766100488080,5738.1998922,0.000125,2]
[399070261,1766100494761,1015.9453555,0.00015,2]
[399070263,1766100505709,693.20364357,0.0001,7]
[399070264,1766100509816,593.23792267,0.000149,2]
[399070265,1766100513813,300.0,2.5e-05,30]
[399070268,1766100537382,150.0,8.542e-05,2]
[399070269,1766100537786,150.0,8.949e-05,2]
[399070270,1766100538201,150.0,9.355e-05,2]
[399070271,1766100538595,150.0,9.762e-05,2]
[399070272,1766100539001,150.0,0.00010169,2]
[399070273,1766100539404,175.32,0.00010576,2]
[399070274,1766100539808,204.54,0.00010982,2]
[399070275,1766100540313,212.03725933,0.00011389,2]
[399070276,1766100540346,21.72274067,0.00011389,2]
[399070277,1766100541193,262.98,0.00011796,2]
[399070278,1766100541630,292.2,0.00012203,2]
[399070279,1766100543059,500.0,0.00013699,2]
[399070280,1766100543119,1000.0,0.00014247,2]
[399070281,1766100543172,1597.04529515,0.00014795,2]
[399070282,1766100549117,-1928.15028143,0.00015258,2]
[399070283,1766100549143,-150.0,0.00015356,2]
[399070284,1766100549163,-227.88270681,0.0001536,120]
[399070285,1766100549185,-300.0,0.00015999,2]
[399070286,1766100549206,-215.19113026,0.00016,2]
[399070287,1766100549226,-54432.49663227,0.00016,7]
[399070288,1766100549246,-11466.24266485,0.00017,2]
[399070289,1766100549267,-177.0,0.00017356,2]
[399070290,1766100549288,-396.0,0.00017492,2]
[399070291,1766100549308,-299.15463745,0.00017664,2]
[399070292,1766100549328,-29924.34507619,0.00018,2]
[399070293,1766100549348,-47374.63724903,0.00019,2]
[399070294,1766100550072,-22625.36275097,0.00019,2]
[399070295,1766100550092,-51837.94434957,0.00019,2]
[399070296,1766100550114,-2405.89,0.00019,2]
[399070297,1766100550139,-903.01771763,0.00019,2]
[399070298,1766100550161,-8061.78035338,0.00019256,2]
[399070299,1766100550183,-370.51,0.000193,2]
[399070300,1766100550206,-204.0,0.00019356,2]
[399070301,1766100550234,-600.0,0.00019379,2]
[399070302,1766100550254,-300.0,0.00019494,120]
[399070303,1766100550277,-300.0,0.00019494,120]
[399070304,1766100550298,-97724.06433949,0.0002,2]
[399070306,1766100561092,-47697.6706495,0.0002,2]
[399070307,1766100561113,-231.0,0.00021356,2]
[399070308,1766100561136,-1200.0,0.00022298,2]
[399070309,1766100561159,-300.0,0.000234,2]
[399070310,1766100561181,-300.0,0.000234,2]
[399070311,1766100561203,-300.0,0.000234,2]
[399070312,1766100561230,-1000.0,0.000234,2]
[399070313,1766100561256,-600.0,0.00023867,10]
[399070314,1766100561279,-299.15463745,0.0002427,2]
[399070315,1766100561301,-475.39508234,0.000244,2]
[399070316,1766100561322,-95355.66717035,0.00026,30]
[399070317,1766100574104,-5000.0,0.000198,2]
[399070318,1766100574125,-4884.16880034,0.00026,30]
[399070322,1766100607620,150.0,8.869e-05,2]
[399070323,1766100608027,150.0,9.291e-05,2]
[399070324,1766100611073,1000.0,0.00015,2]
[399070353,1766100631814,-300.0,0.00021996,120]
[399070354,1766100631824,-485.38007802,0.00026,30]
[399070355,1766100631835,-441.31,0.00026,30]
[399070359,1766100637697,-2696.7030225,0.00026,30]
[399070360,1766100637709,-16550.55332083,0.00026,30]
[399070361,1766100637718,-275.64921462,0.0002789,30]
[399070362,1766100637728,-271.083414,0.00028928,60]
[399070363,1766100637737,-5000.0,0.00029699,2]
[399070364,1766100637746,-8061.78035332,0.00029999,2]
[399070365,1766100637755,-500.0,0.00029999,2]
[399070366,1766100637764,-597.53191513,0.00029999,2]
[399070367,1766100637773,-500.0,0.00029999,2]
[399070368,1766100637782,-500.0,0.00029999,2]
[399070369,1766100637791,-500.0,0.00029999,2]
[399070370,1766100637800,-500.0,0.00029999,2]
[399070371,1766100637809,-445.99391672,0.00029999,2]
[399070372,1766100637818,-392.26479902,0.00029999,2]
[399070373,1766100637827,-500.0,0.00029999,2]
[399070374,1766100637836,-500.0,0.00029999,2]
[399070375,1766100637845,-500.0,0.00029999,2]
[399070376,1766100637854,-500.0,0.00029999,2]
[399070377,1766100637863,-408.08010331,0.00029999,2]
[399070378,1766100637872,-5803.61232543,0.0003,2]
[399070379,1766100637881,-500.98209233,0.0003,2]
[399070380,1766100637891,-370.51,0.0003,14]
[399070382,1766100637900,-600.0,0.00030599,30]
[399070384,1766100637908,-299.45379209,0.00030876,2]
[399070385,1766100637917,-271.083414,0.00032353,60]
[399070387,1766100637926,-171.568,0.00033308,35]
[399070389,1766100637935,-184.7738857,0.00033308,35]
[399070391,1766100637944,-720.0,0.00033659,30]
[399070393,1766100637954,-271.083414,0.00035778,60]
[399070395,1766100637963,-151.0,0.00035778,31]
[399070397,1766100637972,-340.865776,0.00035778,31]
[399070398,1766100637982,-340.865776,0.00035778,31]
[399070399,1766100637991,-340.865776,0.00035778,31]
[399070400,1766100638001,-340.865776,0.00035778,31]
[399070401,1766100638010,-1721.970824,0.00035778,15]
[399070402,1766100638019,-1721.970824,0.00035778,15]
[399070403,1766100638028,-1721.970824,0.00035778,15]
[399070404,1766100638041,-1721.970824,0.00035778,15]
[399070405,1766100638050,-151.0,0.00035778,31]
[399070406,1766100638059,-151.0,0.00035778,31]
[399070407,1766100638069,-999.7868069,0.00036864,2]
[399070408,1766100638081,-4201.0,0.00037,120]
[399070409,1766100638090,-864.0,0.00037025,30]
[399070410,1766100638100,-188.21961955,0.00037158,2]
[399070411,1766100638110,-5017.15952972,0.00038,30]
[399070412,1766100638119,-197.52,0.00038,3]
[399070413,1766100638128,-592.61,0.00038,3]
[399070414,1766100638138,-5000.0,0.00038,120]
[399070415,1766100638300,-500.0,0.00038009,7]
[399070416,1766100638310,-453.90447518,0.00038009,15]
[399070417,1766100638319,-408.73886802,0.00038009,7]
[399070418,1766100638328,-500.0,0.00038009,7]
[399070419,1766100638337,-500.0,0.00038009,7]
[399070420,1766100638346,-25774.69290965,0.0003801,3]
[399070421,1766100638358,-4175.38100511,0.0003801,3]
[399070422,1766100638376,-4892.37058041,0.0003801,3]
[399070423,1766100638387,-102031.29793283,0.0003801,3]
[399070424,1766100638396,-151.0,0.0003801,31]
[399070425,1766100638405,-340.865776,0.0003801,31]
[399070426,1766100638414,-340.865776,0.0003801,31]
[399070427,1766100638423,-340.865776,0.0003801,31]
[399070428,1766100638432,-340.865776,0.0003801,31]
[399070429,1766100638442,-1721.970824,0.0003801,15]
[399070430,1766100638451,-1721.970824,0.0003801,15]
[399070431,1766100638460,-1721.970824,0.0003801,15]
[399070432,1766100638469,-1721.970824,0.0003801,15]
[399070433,1766100638478,-196.10628,0.0003801,31]
[399070434,1766100638488,-151.0,0.0003801,31]
[399070435,1766100638497,-733.15,0.000381,2]
[399070436,1766100638506,-271.083414,0.00039202,60]
[399070437,1766100638516,-395.04,0.0003937,3]
[399070438,1766100638525,-250.0,0.00039678,2]
[399070439,1766100638535,-250.0,0.00039678,2]
[399070440,1766100638544,-250.0,0.00039678,2]
[399070441,1766100638565,-250.0,0.00039678,2]
[399070442,1766100638582,-574.12855637,0.00039678,2]
[399070443,1766100638591,-250.0,0.00039678,2]
[399070444,1766100638601,-250.0,0.00039678,2]
[399070445,1766100638613,-250.0,0.00039678,2]
[399070446,1766100638633,-244.16847174,0.00039678,2]
[399070447,1766100638642,-9832.9866133,0.00039702,2]
[399070448,1766100638651,-595.37131296,0.00040226,2]
[399070449,1766100638661,-1000.0,0.00040592,60]
[399070450,1766100638670,-370.51,0.000406,30]
[399070451,1766100638679,-177.92920058,0.00040619,120]
[399070452,1766100638688,-177.92920058,0.00040619,120]
[399070453,1766100638697,-177.92920058,0.00040619,120]
[399070454,1766100638707,-177.92920058,0.00040619,120]
[399070455,1766100638717,-170.42084463,0.00040619,120]
[399070456,1766100638727,-170.42084463,0.00040619,120]
[399070457,1766100638738,-170.42084463,0.00040619,120]
[399070458,1766100638748,-275.64921463,0.00040619,120]
[399070459,1766100638757,-265.43752211,0.00040619,120]
[399070460,1766100638767,-275.64921463,0.00040619,120]
[399070461,1766100638776,-265.43752211,0.00040619,120]
[399070462,1766100638786,-265.43752211,0.00040619,120]
[399070463,1766100638795,-265.43752211,0.00040619,120]
[399070464,1766100638804,-265.43752211,0.00040619,120]
[399070465,1766100638814,-265.43752211,0.00040619,120]
[399070466,1766100638823,-265.43752211,0.00040619,120]
[399070467,1766100638833,-265.43752211,0.00040619,120]
[399070468,1766100638842,-265.43752211,0.00040619,120]
[399070469,1766100638852,-265.43752211,0.00040619,120]
[399070470,1766100638862,-265.43752211,0.00040619,120]
[399070471,1766100638872,-265.43752211,0.00040619,120]
[399070472,1766100638882,-265.43752211,0.00040619,120]
[399070473,1766100638892,-265.43752211,0.00040619,120]
[399070474,1766100638901,-265.43752217,0.00040619,120]
[399070475,1766100638911,-500.81819481,0.00040619,2]
[399070476,1766100638921,-1000.0,0.00040727,60]
[399070477,1766100638931,-8061.78035332,0.00040741,28]
[399070478,1766100638942,-617.40005154,0.00040774,2]
[399070479,1766100638953,-999.7868069,0.00041065,2]
[399070480,1766100638963,-250.3455894,0.00041232,2]
[399070481,1766100638974,-450.62206092,0.00041232,2]
[399070482,1766100638984,-801.10588608,0.00041232,2]
[399070483,1766100638994,-640.24385345,0.00041322,2]
[399070484,1766100639006,-1000.0,0.00041408,30]
[399070485,1766100639017,-2790.52879316,0.00041458,2]
[399070486,1766100639028,-1549.96471044,0.00041512,2]
[399070487,1766100639039,-663.93287602,0.0004187,2]
[399070488,1766100639049,-3387.01551536,0.00042317,2]
[399070489,1766100639060,-688.49839244,0.00042418,2]
[399070490,1766100639071,-353.8242399,0.00042588,2]
[399070491,1766100639082,-271.083414,0.00042627,60]
[399070492,1766100639093,-876.38579873,0.0004276,2]
[399070493,1766100639103,-713.97283296,0.00042966,2]
[399070494,1766100639114,-1361.0,0.000433,2]
[399070495,1766100639125,-415.0,0.000433,2]
[399070496,1766100639135,-733.15,0.000434,2]
[399070497,1766100639146,-740.38982778,0.00043514,2]
[399070498,1766100639157,-696.23537907,0.00044062,2]
[399070499,1766100639170,-9832.9866133,0.00044099,2]
[399070500,1766100639181,-1099.77825723,0.00044395,5]
[399070501,1766100639191,-1000.0,0.000448,60]
[399070502,1766100639204,-244.0,0.000448,60]
[399070503,1766100639214,-500.0,0.00044999,2]
[399070504,1766100639224,-1000.0,0.00045,120]
[399070505,1766100639235,-999.7868069,0.00045267,2]
[399070506,1766100639245,-500.0,0.0004544,17]
[399070507,1766100639255,-4877.30234211,0.00045447,2]
[399070508,1766100639265,-1314.65034818,0.00045515,2]
[399070509,1766100639274,-370.51,0.000462,30]
[399070510,1766100639283,-1361.0,0.000463,2]
[399070511,1766100639293,-415.0,0.000463,2]
[399070512,1766100639303,-420.02070689,0.00046729,17]
[399070513,1766100639315,-3725.97208924,0.00046732,5]
[399070514,1766100639324,-927.06049259,0.00046732,5]
[399070515,1766100639334,-215.58270697,0.00047836,7]
[399070516,1766100639344,-1000.0,0.00048,120]
[399070517,1766100639353,-9832.9866133,0.00048495,2]
[399070518,1766100639363,-186.86009611,0.00049115,120]
[399070519,1766100639372,-186.86009611,0.00049115,120]
[399070520,1766100639382,-186.86009611,0.00049115,120]
[399070521,1766100639391,-186.86,0.00049115,120]
[399070522,1766100639401,-158.54796033,0.00049115,120]
[399070523,1766100639410,-158.54796033,0.00049115,120]
[399070524,1766100639420,-158.54796033,0.00049115,120]
[399070525,1766100639430,-158.54796033,0.00049115,120]
[399070526,1766100639438,-158.54796033,0.00049115,120]
[399070527,1766100639448,-158.54796033,0.00049115,120]
[399070528,1766100639459,-158.54796033,0.00049115,120]
[399070529,1766100639469,-158.54796033,0.00049115,120]
[399070530,1766100639479,-158.54796033,0.00049115,120]
[399070531,1766100639488,-158.54796033,0.00049115,120]
[399070532,1766100639497,-158.54,0.00049115,120]
[399070533,1766100639506,-152.66905754,0.00049115,120]
[399070534,1766100639516,-152.66905754,0.00049115,120]
[399070535,1766100639525,-152.66905754,0.00049115,120]
[399070536,1766100639534,-152.66905754,0.00049115,120]
[399070537,1766100639543,-152.66905754,0.00049115,120]
[399070538,1766100639553,-152.66905754,0.00049115,120]
[399070539,1766100639562,-152.66905754,0.00049115,120]
[399070540,1766100639571,-152.66905754,0.00049115,120]
[399070541,1766100639580,-152.66905754,0.00049115,120]
[399070542,1766100639589,-152.66905754,0.00049115,120]
[399070543,1766100639598,-152.66905754,0.00049115,120]
[399070544,1766100639607,-152.66905754,0.00049115,120]
[399070545,1766100639617,-152.66905754,0.00049115,120]
[399070546,1766100639626,-152.66905754,0.00049115,120]
[399070547,1766100639635,-152.66905754,0.00049115,120]
[399070548,1766100639644,-152.66905754,0.00049115,120]
[399070549,1766100639654,-152.66905754,0.00049115,120]
[399070550,1766100639663,-152.66905754,0.00049115,120]
[399070551,1766100639672,-152.66,0.00049115,120]
[399070552,1766100639681,-338.41641089,0.00049115,120]
[399070553,1766100639690,-338.41641089,0.00049115,120]
[399070554,1766100639699,-338.41641089,0.00049115,120]
[399070555,1766100639709,-338.41641089,0.00049115,120]
[399070556,1766100639719,-338.41641089,0.00049115,120]
[399070557,1766100639728,-338.41641089,0.00049115,120]
[399070558,1766100639737,-338.41641089,0.00049115,120]
[399070559,1766100639746,-338.41641089,0.00049115,120]
[399070560,1766100639756,-338.41641089,0.00049115,120]
[399070561,1766100639765,-338.41641089,0.00049115,120]
[399070562,1766100639774,-338.41641089,0.00049115,120]
[399070563,1766100639783,-338.41641089,0.00049115,120]
[399070564,1766100639793,-338.41641089,0.00049115,120]
[399070565,1766100639801,-338.41641089,0.00049115,120]
[399070566,1766100639811,-338.41641089,0.00049115,120]
[399070567,1766100639819,-338.41641089,0.00049115,120]
[399070568,1766100639828,-338.41641089,0.00049115,120]
[399070569,1766100639837,-338.41641089,0.00049115,120]
[399070570,1766100639846,-338.41641089,0.00049115,120]
[399070571,1766100639855,-338.41,0.00049115,120]
[399070572,1766100639863,-157.76498223,0.00049115,120]
[399070573,1766100639872,-157.76498223,0.00049115,120]
[399070574,1766100639881,-157.76498223,0.00049115,120]
[399070575,1766100639890,-157.76498223,0.00049115,120]
[399070576,1766100639898,-157.76498223,0.00049115,120]
[399070577,1766100639908,-157.76498223,0.00049115,120]
[399070578,1766100639917,-157.76498223,0.00049115,120]
[399070579,1766100639926,-157.76498223,0.00049115,120]
[399070580,1766100639935,-157.76,0.00049115,120]
[399070581,1766100639944,-165.65323134,0.00049115,120]
[399070582,1766100639954,-165.65323134,0.00049115,120]
[399070583,1766100639963,-165.65323134,0.00049115,120]
[399070584,1766100639971,-165.65323134,0.00049115,120]
[399070585,1766100639981,-165.65323134,0.00049115,120]
[399070586,1766100639991,-165.65323134,0.00049115,120]
[399070587,1766100640001,-165.65323134,0.00049115,120]
[399070588,1766100640010,-165.65323134,0.00049115,120]